Cogmind - Beta 15 @@@ ROGUE MODE // 2025.05.10 @ 10:36:19 Player: LoNine Result: Destroyed by I7-IZU(h) with Bolt Gun Performance ------------- Evolutions (0) 0 Regions Visited (3) 600 Robots Destroyed (8) 40 Value Destroyed (288) 288 Prototype IDs (11) 220 Alien Tech Used (0) 0 Bonus (800) 800 TOTAL SCORE: 1948 Bonus ------- Registered with UFD 300 Met Optimus in HQ 500 Cogmind --------- Core Integrity 0/250 Matter 179/300 Energy 100/100 System Corruption 0% Temperature Cool (12) Movement Core (350) Ox6 Location -9/Scraptown Parts ------- > --- POWER (1) -------- (None) > --- PROPULSION (2) --- (None) > --- UTILITY (2) ------ Large Storage Unit A0-MCA's Component Scanner > --- WEAPON (2) ------- (None) > --- INVENTORY (15) --- Light Ion Engine Wheel Compact Wheel Subdweller Optics Seismic Detector Shotgun Large Botcube Peak State ------------ > --- POWER ------------ Ion Engine > --- PROPULSION ------- Overtuned Titanium Leg > --- UTILITY ---------- Large Storage Unit A0-MCA's Component Scanner > --- WEAPON ----------- Battle Cannon Subdweller Shrapnel Launcher > --- INVENTORY -------- Light Ion Engine Wheel Compact Wheel Subdweller Optics Seismic Detector Shotgun Large Botcube [Rating: 21] Favorites ----------- Power Ion Engine Engine Ion Engine Propulsion Compact Wheel Leg Overtuned Titanium Leg Wheel Compact Wheel Utility Seismic Detector Device Seismic Detector Storage Large Storage Unit Processor A0-MCA's Component Scanner Weapon Light Assault Rifle Ballistic Gun Light Assault Rifle Ballistic Cannon Battle Cannon Launcher Subdweller Shrapnel Launcher Build | -11 -10 -10 -9 ------- Run | Yrd Mat Sub Scr Slots Evolved . | . . . . Power . | . . . . Propulsion . | . . . . Utility . | . . . . Weapon . | . . . . Parts Attached 15 | 7 . . 8 Power 2 | 1 . . 1 Engine 2 | 1 . . 1 Core . | . . . . Reactor . | . . . . Propulsion 5 | 2 . . 3 Treads . | . . . . Leg 1 | . . . 1 Wheel 4 | 2 . . 2 Hover . | . . . . Flight . | . . . . Utility 4 | 2 . . 2 Device 1 | 1 . . . Storage 2 | 1 . . 1 Processor 1 | . . . 1 Hackware . | . . . . Protection . | . . . . Artifact . | . . . . Weapon 4 | 2 . . 2 Energy Gun . | . . . . Energy Cannon . | . . . . Ballistic Gun 2 | 2 . . . Ballistic Cannon 1 | . . . 1 Launcher 1 | . . . 1 Special Weapon . | . . . . Impact Weapon . | . . . . Slashing Weapon . | . . . . Piercing Weapon . | . . . . Special Melee Weapon . | . . . . Unidentified Prototypes . | . . . . Parts Lost 8 | . . . 8 Power 2 | . . . 2 Propulsion 3 | . . . 3 Utility . | . . . . Weapon 3 | . . . 3 Highest Loss Streak 4 | . . . 4 To Critical Strikes . | . . . . Average Backups 7 | 2 6 7 8 Power 1 | . 1 2 1 Propulsion 2 | 1 3 3 2 Utility 1 | . . . 1 Weapon 2 | . 1 1 2 Tool/Special . | . . . . Unused Backups 7 | . . 2 5 Power 1 | . . . 1 Propulsion 2 | . . . 2 Utility 2 | . . 1 1 Weapon 2 | . . 1 1 Tool/Special . | . . . . Average Slot Usage (%) 98 | . 100 100 97 Engine 13 | . 14 14 13 Wheel 27 | . 28 28 26 Device 12 | . 14 14 11 Storage 14 | . 14 14 14 Processor 1 | . . . 2 Ballistic Gun 26 | . 28 28 26 Peak Build Rating 21 | 7 7 8 21 Average Rating 9 | 5 7 7 9 On Entrance 5 | . 7 7 8 Naked Turns . | . . . . Heaviest Build 36 | 13 13 13 36 Greatest Support 32 | 32 32 32 32 Greatest Overweight (x) 1 | . . . 1 Average Overweight (x) . | . . . . Largest Inventory Capacity 15 | 8 8 8 15 Average Capacity 12 | 7 8 8 14 Most Carried 11 | 5 7 8 11 Average Carried 8 | 2 6 7 8 Final Capacity 15 | 8 8 8 15 Final Carried 8 | 5 7 8 8 Class Distribution -------------------- 100% | Mutant Dominant Class ---------------- Mutant | -10/Materials Mutant | -10/Subcaves Mutant | -9/Scraptown Resources | -11 -10 -10 -9 ----------- Run | Yrd Mat Sub Scr Matter Collected 428 | 225 53 . 150 Remotely . | . . . . Salvage Created 288 | 24 24 . 240 Parts 22 | 2 . . 20 Haulers Intercepted . | . . . . Recyclers Shooed 1 | 1 . . . Parts Field Recycled . | . . . . Retrieved Matter . | . . . . Parts Self-Destructed 2 | . . 2 . Prevented . | . . . . Kills | -11 -10 -10 -9 ------- Run | Yrd Mat Sub Scr Combat Hostiles Destroyed 6 | . . . 6 Guns 1 | . . . 1 Cannons 2 | . . . 2 AOE 3 | . . . 3 Classes Destroyed 7 | 1 1 . 5 Tunneler 1 | 1 . . . Watcher 1 | . 1 . . Federalist 1 | . . . 1 Ranger 1 | . . . 1 Guru 1 | . . . 1 Scrapper 2 | . . . 2 Mutant 1 | . . . 1 Best Kill Streak 5 | 1 1 . 5 Combat Bots Only 5 | . . . 5 Max Kills in Single Turn 1 | 1 1 . 1 Gunslinging . | . . . . Exploded 1 | . . . 1 Melee . | . . . . Uniques/NPCs Destroyed . | . . . . Combat | -11 -10 -10 -9 -------- Run | Yrd Mat Sub Scr Hostile Shots Fired 89 | . . . 89 Missed 14 | . . . 14 Hits 75 | . . . 75 Projectile 75 | . . . 75 Critical Strikes 4 | . . . 4 Damage Taken 904 | . . . 904 Core 253 | . . . 253 Absorbed by Shields . | . . . . Regen/Repaired (Parts) 162 | . . . 162 Core Remaining (%) 100 | 100 . . . Volleys Fired 30 | 2 2 . 26 Largest 2 | 2 2 . 2 Hottest 60 | 40 40 . 60 Shots Fired 36 | 4 4 . 28 Gun 14 | 4 4 . 6 Cannon 15 | . . . 15 Launcher 7 | . . . 7 Special . | . . . . Kinetic 36 | 4 4 . 28 Thermal . | . . . . Explosive . | . . . . Electromagnetic . | . . . . Robot Hit Streak 5 | 4 5 . 4 Robot Miss Streak 2 | . 1 . 2 Penetration Max . | . . . . Secondary Targets . | . . . . Shots Hit Robots 23 | 4 3 . 16 Core Hits 16 | 3 1 . 12 Critical Kills . | . . . . Critical Parts Destroyed . | . . . . Critical Strikes 1 | . . . 1 Blast 1 | . . . 1 Melee Attacks . | . . . . Impact . | . . . . Slashing . | . . . . Piercing . | . . . . Sneak Attacks . | . . . . Combat Hostiles . | . . . . Follow-up Attacks . | . . . . Damage Inflicted 613 | 27 26 . 560 Guns 76 | 27 26 . 23 Cannons 187 | . . . 187 Explosions 350 | . . . 350 Melee . | . . . . Ramming . | . . . . Kinetic 613 | 27 26 . 560 Thermal . | . . . . Explosive . | . . . . Electromagnetic . | . . . . Impact . | . . . . Slashing . | . . . . Piercing . | . . . . Highest Corruption . | . . . . Average Corruption . | . . . . Corruption Purged . | . . . . Corruption Blocked . | . . . . Overload Shots . | . . . . Overflow Damage 11 | . . . 11 Projectiles . | . . . . Explosions 11 | . . . 11 Melee . | . . . . Knockbacks 1 | . . . 1 Impact . | . . . . Kinetic 1 | . . . 1 Secondary . | . . . . Self-Inflicted Damage 24 | . . . 24 Shots 1 | . . . 1 Rammed . | . . . . Targets Rammed . | . . . . Kicked . | . . . . Crushed . | . . . . Highest Temperature 45 | . . . 45 Average Temperature 14 | . . . 14 Received Heat Transfer 393 | . . . 393 Siege Activations . | . . . . Martial Activations . | . . . . Shielding Activations . | . . . . Robots Disrupted . | . . . . Combat Hostiles . | . . . . Robots Corrupted . | . . . . Combat Hostiles . | . . . . Parts Fried . | . . . . Impact Corruptions . | . . . . Robots Melted . | . . . . Combat Hostiles . | . . . . Parts Melted 2 | . . . 2 Heat Transferred . | . . . . Parts Sabotaged . | . . . . Parts Stolen . | . . . . Parts Stripped . | . . . . Power Chain Reactions . | . . . . Alert | -11 -10 -10 -9 ------- Run | Yrd Mat Sub Scr Maximum Alert Level . | . . . . Low Security (%) 100 | 100 100 . . Level 1 . | . . . . Level 2 . | . . . . Level 3 . | . . . . Level 4 . | . . . . Level 5 . | . . . . High Security . | . . . . Max Security . | . . . . Peak Influence 7 | 5 7 . . Initial . | . . . . Average . | . . . . Influence Increases 12 | 5 7 . . Destroy 0b10 Robot/NC 10 | 5 5 . . Destroy Leader 2 | . 2 . . Influence Decreases 12 | 5 7 . . Time Decay 12 | 5 7 . . Squads Dispatched 2 | . 2 . . Investigation . | . . . . Extermination . | . . . . Reinforcement 2 | . 2 . . Assault . | . . . . Garrison . | . . . . Intercept . | . . . . Searches Triggered . | . . . . Construction Impeded . | . . . . Haulers Reinforced . | . . . . Active Scanning Responses . | . . . . Cargo Convoy Interrupts . | . . . . Stealth | -11 -10 -10 -9 --------- Run | Yrd Mat Sub Scr Distress Signals . | . . . . Communications Jammed . | . . . . Distress Signals . | . . . . Times Spotted 23 | . 1 . 22 Peak Tracking Total 13 | . . . 13 Tactical Retreats . | . . . . Traps | -11 -10 -10 -9 ------- Run | Yrd Mat Sub Scr Traps Triggered . | . . . . Indirectly . | . . . . Trap Hack Attempts . | . . . . Triggered . | . . . . Disarmed . | . . . . Reprogrammed . | . . . . Reused . | . . . . Traps Extracted . | . . . . Installed . | . . . . Triggered . | . . . . Machines | -11 -10 -10 -9 ---------- Run | Yrd Mat Sub Scr Machines Disabled 4 | . . . 4 Max in Single Turn 2 | . . . 2 Machines Repaired . | . . . . Machines Dismantled . | . . . . Machines Sabotaged . | . . . . Overloaded Fab Kills . | . . . . Hacking | -11 -10 -10 -9 --------- Run | Yrd Mat Sub Scr Machines Accessed 5 | . 1 . 4 Terminals 1 | . 1 . . Fabricators . | . . . . Repair Stations . | . . . . Recycling Units . | . . . . Scanalyzers . | . . . . Garrison Access . | . . . . Total Hacks 25 | . 2 . 23 Successful 23 | . . . 23 Failed 2 | . 2 . . Catastrophic 2 | . 2 . . Database Lockouts . | . . . . Manual . | . . . . Terminals 2 | . 2 . . Fabricators . | . . . . Repair Stations . | . . . . Recycling Units . | . . . . Scanalyzers . | . . . . Garrison Access . | . . . . Terminal Hacks 23 | . . . 23 Record 18 | . . . 18 Robot Analysis 5 | . . . 5 Fabricator Hacks . | . . . . Repair Station Hacks . | . . . . Recycling Unit Hacks . | . . . . Scanalyzer . | . . . . Garrison Access Hacks . | . . . . Unauthorized Hacks . | . . . . Terminals . | . . . . Fabricators . | . . . . Repair Stations . | . . . . Recycling Units . | . . . . Scanalyzers . | . . . . Garrison Access . | . . . . Data Cores Recovered . | . . . . Used . | . . . . Hacking Detections 1 | . 1 . . Full Trace Events 1 | . 1 . . Feedback Events . | . . . . Feedback Blocked . | . . . . Robot Schematics Acquired . | . . . . Robots Built . | . . . . Authchips . | . . . . Time . | . . . . Total Robot Build Rating . | . . . . Part Schematics Acquired . | . . . . Parts Built . | . . . . Authchips . | . . . . Time . | . . . . Total Part Build Rating . | . . . . Parts Repaired . | . . . . Time . | . . . . Parts Recycled . | . . . . Recycled Matter . | . . . . Retrieved Matter . | . . . . Retrieved Components . | . . . . Parts Scanalyzed . | . . . . Part Schematics Acquired . | . . . . Parts Damaged . | . . . . Bothacking | -11 -10 -10 -9 ------------ Run | Yrd Mat Sub Scr Used RIF Installer . | . . . . Robots Hacked . | . . . . Non-combat . | . . . . Combat . | . . . . Robot Hacks Applied . | . . . . Relay Couplers Released . | . . . . Fabnet Peak Effective % . | . . . . Robots Rewired . | . . . . Allies Hacked . | . . . . Hacks Repelled . | . . . . Allies | -11 -10 -10 -9 -------- Run | Yrd Mat Sub Scr Total Allies . | . . . . Largest Group . | . . . . Highest-Rated Group . | . . . . Highest-Rated Ally . | . . . . Total Orders . | . . . . Ally Attacks . | . . . . Total Damage . | . . . . Kills . | . . . . Allies Corrupted . | . . . . Allies Melted 2 | . . 1 1 Intel | -11 -10 -10 -9 ------- Run | Yrd Mat Sub Scr Active Infowar (turns) 1604 | 12 130 244 1218 Seismic 1604 | 12 130 244 1218 Robot Analysis Total 5 | . . . 5 Derelict Logs Recovered 3 | . . 1 2 Drone Launches . | . . . . Drone Recoveries . | . . . . Exploration | -11 -10 -10 -9 ------------- Run | Yrd Mat Sub Scr Turns Passed 1889 | 75 130 244 1440 Spaces Moved 1575 | 55 93 128 1299 Core 1 | 1 . . . Treads . | . . . . Legs 3 | . . . 3 Wheels 1571 | 54 93 128 1296 Hover . | . . . . Flight . | . . . . Fastest Speed 50 | 50 100 100 90 Average Speed 99 | 99 100 100 99 Slowest Speed 170 | 100 100 100 170 Overloaded Moves . | . . . . Propulsion Burnouts . | . . . . Robots Hopped . | . . . . Potential Cave-ins . | . . . . Cave-ins Triggered . | . . . . Exploration Rate (%) 32 | 3 28 15 82 Regions Visited 3 Branch Regions 2 Pre-discovered Areas 1 | . . . 1 Known Exits Taken . | . . . . Unknown Exits Taken 3 | 1 1 1 . Scrap Searched 2 | . . . 2 Spaces Dug . | . . . . Terrain Destroyed 88 | . . . 88 Melee . | . . . . Projectile 4 | . . . 4 AOE 84 | . . . 84 Terrain Rammed . | . . . . Walls Destroyed . | . . . . Machines Disabled . | . . . . Actions | -11 -10 -10 -9 --------- Run | Yrd Mat Sub Scr Total 1854 | 68 126 244 1416 Wait 215 | . 30 112 73 Move 1572 | 54 92 127 1299 Hop . | . . . . Pick Up 14 | 5 2 3 4 Fast Attach 8 | 7 . . 1 Attach 6 | . . . 6 Detach 3 | . . . 3 Swap 1 | . . . 1 Drop 5 | . . 2 3 Fire 30 | 2 2 . 26 Melee . | . . . . Ram . | . . . . Kick . | . . . . Crush . | . . . . Escape Stasis . | . . . . Rewire . | . . . . Trap . | . . . . Miscellaneous . | . . . . Route ------- -11/Scrapyard -10/Materials (discovered 2 exits: [*Mat] / [*Sub]) -10/Subcaves (discovered 2 exits: Mat / *Scr) -9/Scraptown (discovered 2 exits: [*Fac x2]) History --------- Turn | Location | Event 12 | -11/Scrapyard | Discovered new exit (range 16) 76 | -11/Scrapyard | Entered Materials 77 | -10/Materials | Met a group of wandering Federalists 175 | -10/Materials | Discovered new exit (range 7) 196 | -10/Materials | Discovered new exit (range 7) 206 | -10/Materials | Entered Subcaves 207 | -10/Subcaves | Continued accompanying wandering Federalists (6) 207 | -10/Subcaves | Approached by a straggling Scientist 221 | -10/Subcaves | Identified exit to Materials 317 | -10/Subcaves | Build established: Mutant 323 | -10/Subcaves | A swath of the cavern ceiling suddenly collapsed 396 | -10/Subcaves | A swath of the cavern ceiling suddenly collapsed 425 | -10/Subcaves | Wandering Federalist uncovered a shortcut to Scraptown 450 | -10/Subcaves | Entered Scraptown 789 | -9/Scraptown | Visited UFD Registry 789 | -9/Scraptown | Registered with UFD as "Alphaslicer" 812 | -9/Scraptown | Visited Cave Peace 842 | -9/Scraptown | Visited CR-KLE's Repair Center 849 | -9/Scraptown | CR-KLE repaired 2 parts 875 | -9/Scraptown | Visited Cyclists 890 | -9/Scraptown | Entered Cyclist Reading Room 929 | -9/Scraptown | Scanned Subdweller tech in exchange for log data 931 | -9/Scraptown | Learned location of Testing (-2) 932 | -9/Scraptown | Learned Research stockpile data 958 | -9/Scraptown | Discovered new exit (range 11) 1211 | -9/Scraptown | Visited Bundlers 1238 | -9/Scraptown | Visited Spacefarers 1328 | -9/Scraptown | Visited Curators Association 1346 | -9/Scraptown | Visited Science Guys 1363 | -9/Scraptown | Visited LU-1G1's Boring Crew 1507 | -9/Scraptown | Visited Botcube Research 1515 | -9/Scraptown | Found Lrg. Botcube 1536 | -9/Scraptown | Visited Analyses Database 1574 | -9/Scraptown | Met Optimus 1574 | -9/Scraptown | Accepted into 0bPrime 1658 | -9/Scraptown | Visited A0-MCA Data Center 1664 | -9/Scraptown | Given a B+ rating by A0-MCA 1667 | -9/Scraptown | Found A0-MCA's Component Scanner 1685 | -9/Scraptown | Visited Modified Component R&D 1731 | -9/Scraptown | Discovered new exit (range 5) 1740 | -9/Scraptown | Civil war broke out across Scraptown 1811 | -9/Scraptown | Visited Infowarlord's Domain 1833 | -9/Scraptown | Core integrity fell below 50% 1858 | -9/Scraptown | Lost 4 parts (1p2n1w) 1858 | -9/Scraptown | Lost 14 allies 1886 | -9/Scraptown | Core integrity fell below 20% 1888 | -9/Scraptown | Optimus destroyed in the chaos of civil war 1890 | -9/Scraptown | Destroyed by I7-IZU(h) with Bolt Gun Last Messages --------------- ZA-C5R(h) destroyed. VD-LNY(l) destroyed. DM-2G3(p) switches sides: "Sorry, the bolts are shinier on the other side!" Bolt penetrates Wall. DM-2G3(p) destroyed. Bolt penetrates Wall. Ovr. Titanium Leg destroyed. Bolt penetrates Wall. PD-595(g) knocked back. Penetrated by Bolt. PD-595(g) Ion Engine blasted off. Penetrated by Bolt. Broken Sub. Shrapnel Launcher destroyed. Ion Engine destroyed. Penetrated by Bolt. Battle Cannon destroyed. ANNOUNCEMENT: The traitor Optimus has been dealt with. Put down any remaining collaborators. Penetrated by Bolt. Map ----- +----------------------------------------------------+ | ?????????????????????????????????????????????????? | | ?????????????????????????????????????????????????? | | ?????????????????????????????????????????????????? | | ?????????????????????????????????????????????????? | | ?????????????????????????????????????????????????? | | ?????????????????????????????????????????????????? | | ?????????????????????????????????????????????????? | | ?????????????????????????????????????????????????? | | ????????????????????????????????#####????????????? | | ????????????????????????????????#"""#????????????? | | ??????????????????????# ????#" "#????????????? | | ???????????????#?????# ??# < "#???????????? | | ???????????"" ##!!"### =%! % ##*! ##???????????? | | ????????? h !% [ =%[j=%[ #???????????? | | ????????? %!=! [=j[% #???????????? | | ????????????????######*g=*!%= ;#######???????????? | | ????????????????????# % ! #########?????????? | | ????????????????????# []/ """""""#?????????? | | ???????????????????## = % #"""""""#?????????? | | ???????????????????? =% # = " "#?????????? | | ??????????????####### =! ;+# ["#?????????? | | ??????????????# # =%! "#?????????? | | ??????????????#! !# = "#?????????? | | ??????????????#! !# """""#?????????? | | ??????????????#! !# = "#####?????????? | | ??????????????#! !; [!@ """""#?????????? | | ??????????????#! !## %%=!# = = #?????????? | | ??????????????# ## ==!; #?????????? | | ?????? ????????? ## ; ; #?????????? | | ?????? #?????????# #?# ;* ;# ###########?????????? | | ??#### ########### ###;;!!;# #############???????? | | """"" ["""* " "" "" = "##""""""""""???????? | | % !%*%! [%= [ ;# """""""""???????? | | =!==! =%[ *! % != ## """""""""#??????? | | !% "# " """"#??????? | | * =!!*[ =[!## """"#??????? | | !% [=!!= *= """"#??????? | | """" *%""" " " """"%=[* "## """""""""#??????? | | """ "="""""""""" """"""!!= "## ""!""""""#??????? | | #### ##########"##### "=*!% "## """""""""#??????? | | ##?? ##???#" %[=% "############???????? | | X"#?##?????#"!*%!!!"## """"#??????????? | | "" "" ##????????#""==[=*"## " "#??????????? | | "" "" X"#??????###""%!*!!"## X"#??????????? | | " " ######### #""==%!%[## "#??????????? | | "" % !== ""#??????????? | | "" = "## " "#??????????? | | " " ######### #"" "## """"#??????????? | | "" "" ""#??????###"" "## """"#??????????? | | "" "" ##????????#"" "#########??????????? | +----------------------------------------------------+ Best States ------------- Heat Dissipation 25 Energy Generation 10 Energy Capacity 250 Matter Stores 300 Matter Capacity 300 Sight Range 16 Terrain Scan Density 10 Evasion (%) 42 Item Schematics ----------------- None Robot Schematics ------------------ None Fabricated ------------ Nothing Repaired ---------- Nothing Alien Tech Used ----------------- None Achievements -------------- Armchair Analyst Librarian Challenges ------------ None Game ------ Seed GyrokineticLightningWarhead Manual? 0 Play Time 00:31:13 Cumulative 8.9 hours Start 2025.05.10 @ 10:03:32 End 2025.05.10 @ 10:36:19 Sessions 1 Manual Loads 0 Difficulty Rogue Special Mode None Game No. 11 Rogue 11 Adventurer 0 Explorer 0 Win Type - Total 0 Types 0/0/0/0/0/0/0/0/0/0 Lore% 7 Gallery% 11 Achievement% 16 Wizard Run 0 Options --------- Layout 1 ASCII 0 Keyboard 1 Movement Vi Keybinds 0 Fullscreen 0 Font 18/SmallcapsGlow Map View 64x42 Zoom Use 4% Tactical HUD 0 Map Filters NONE Filters NONE Steam 1 RUN: 9b65e190-2f10-4ce2-99bf-8da965f9a996